Workbook

Sheet Table 8-1
A1: Table 8-1. Trends in Federal Grants to State and Local Governments
A2: (Outlays in billions of dollars)
J4: Estimate
B5: 1980 | C5: 1990 | D5: 2000 | E5: 2005 | F5: 2010 | G5: 2015 | H5: 2020 | I5: 2023 | J5: 2024 | K5: 2025
A6: A. Distribution of grants by function:
A7: Natural resources and environment....................................................................................... | B7: 5.4 | C7: 3.7 | D7: 4.6 | E7: 5.9 | F7: 9.1 | G7: 7.0 | H7: 7.2 | I7: 10.9 | J7: 38.6 | K7: 18.0
A8: Agriculture....................................................................................... | B8: 0.6 | C8: 1.1 | D8: 0.7 | E8: 0.9 | F8: 0.8 | G8: 0.7 | H8: 0.8 | I8: 0.9 | J8: 0.9 | K8: 1.1
A9: Transportation....................................................................................... | B9: 13.0 | C9: 19.2 | D9: 32.2 | E9: 43.4 | F9: 61.0 | G9: 60.8 | H9: 69.3 | I9: 87.7 | J9: 97.3 | K9: 108.0
A10: Community and regional development...................................... | B10: 6.5 | C10: 5.0 | D10: 8.7 | E10: 20.2 | F10: 18.9 | G10: 14.4 | H10: 52.5 | I10: 38.3 | J10: 72.8 | K10: 42.6
A11: Education, training, employment, and social services.......................... | B11: 21.9 | C11: 21.8 | D11: 36.7 | E11: 57.2 | F11: 97.6 | G11: 60.5 | H11: 67.9 | I11: 92.2 | J11: 87.5 | K11: 81.4
A12: Health....................................................................................... | B12: 15.8 | C12: 43.9 | D12: 124.8 | E12: 197.8 | F12: 290.2 | G12: 368.0 | H12: 493.4 | I12: 663.7 | J12: 615.1 | K12: 637.8
A13: Income security....................................................................................... | B13: 18.5 | C13: 36.9 | D13: 68.7 | E13: 90.9 | F13: 115.2 | G13: 101.1 | H13: 118.2 | I13: 166.9 | J13: 167.2 | K13: 168.7
A14: Administration of justice....................................................................................... | B14: 0.5 | C14: 0.6 | D14: 5.3 | E14: 4.8 | F14: 5.1 | G14: 3.7 | H14: 9.4 | I14: 6.2 | J14: 8.6 | K14: 8.8
A15: General government....................................................................................... | B15: 8.6 | C15: 2.3 | D15: 2.1 | E15: 4.4 | F15: 5.2 | G15: 3.8 | H15: 4.3 | I15: 9.4 | J15: 8.3 | K15: 11.2
A16: Other....................................................................................... | B16: 0.7 | C16: 0.8 | D16: 2.1 | E16: 2.6 | F16: 5.3 | G16: 4.3 | H16: 6.1 | I16: 7.2 | J16: 11.2 | K16: 17.6
A17: Total....................................................................................... | B17: 91.4 | C17: 135.3 | D17: 285.9 | E17: 428.0 | F17: 608.4 | G17: 624.4 | H17: 829.1 | I17: 1,083.4 | J17: 1,107.6 | K17: 1,095.3
A19: B. Distribution of grants by BEA category:
A20: Discretionary....................................................................................... | B20: 53.4 | C20: 63.5 | D20: 116.7 | E20: 182.3 | F20: 247.4 | G20: 189.6 | H20: 259.4 | I20: 289.1 | J20: 340.1 | K20: 334.0
A21: Mandatory....................................................................................... | B21: 38.0 | C21: 71.9 | D21: 169.2 | E21: 245.7 | F21: 361.0 | G21: 434.7 | H21: 569.7 | I21: 794.3 | J21: 767.5 | K21: 761.4
A22: Total....................................................................................... | B22: 91.4 | C22: 135.3 | D22: 285.9 | E22: 428.0 | F22: 608.4 | G22: 624.4 | H22: 829.1 | I22: 1,083.4 | J22: 1,107.6 | K22: 1,095.3
A24: C. Composition:
A25: Current dollars:
A26: Payments for individuals 1....................................................................................... | B26: 33.1 | C26: 77.4 | D26: 186.5 | E26: 278.8 | F26: 391.4 | G26: 463.4 | H26: 608.6 | I26: 816.4 | J26: 770.7 | K26: 799.1
A27: Physical capital 1....................................................................................... | B27: 22.6 | C27: 27.2 | D27: 48.7 | E27: 60.8 | F27: 93.3 | G27: 77.2 | H27: 85.3 | I27: 111.9 | J27: 132.0 | K27: 161.1
A28: Other grants....................................................................................... | B28: 35.8 | C28: 30.7 | D28: 50.7 | E28: 88.4 | F28: 123.7 | G28: 83.7 | H28: 135.2 | I28: 155.1 | J28: 204.8 | K28: 135.1
A29: Total....................................................................................... | B29: 91.4 | C29: 135.3 | D29: 285.9 | E29: 428.0 | F29: 608.4 | G29: 624.4 | H29: 829.1 | I29: 1,083.4 | J29: 1,107.6 | K29: 1,095.3
A31: Percentage of total grants:
A32: Payments for individuals 1....................................................................................... | B32: =B26/B29 -> 36.2% | C32: 57.2% | D32: 65.3% | E32: 65.1% | F32: 64.3% | G32: =G26/G29 -> 74.2% | H32: 73.4% | I32: =I26/I29 -> 75.4% | J32: =J26/J29 -> 69.6% | K32: =K26/K29 -> 73.0%
A33: Physical capital 1....................................................................................... | B33: =B27/B29 -> 24.7% | C33: =C27/C29 -> 20.1% | D33: 17.0% | E33: 14.2% | F33: 15.3% | G33: 12.4% | H33: =H27/H29 -> 10.3% | I33: =I27/I29 -> 10.3% | J33: =J27/J29 -> 11.9% | K33: 14.7%
A34: Other grants....................................................................................... | B34: =B28/B29 -> 39.1% | C34: =C28/C29 -> 22.7% | D34: 17.7% | E34: 20.7% | F34: 20.3% | G34: 13.4% | H34: 16.3% | I34: =I28/I29 -> 14.3% | J34: =J28/J29 -> 18.5% | K34: 12.3%
A35: Total....................................................................................... | B35: 100.0% | C35: 100.0% | D35: 100.0% | E35: 100.0% | F35: 100.0% | G35: 100.0% | H35: 100.0% | I35: 100.0% | J35: 100.0% | K35: 100.0%
A37: Constant (FY 2017) dollars:
A38: Payments for individuals 1 ....................................................................................... | B38: 86.7 | C38: 130.9 | D38: 254.1 | E38: 341.2 | F38: 432.3 | G38: 474.5 | H38: 580.8 | I38: 679.4 | J38: 621.9 | K38: 629.7
A39: Physical capital 1....................................................................................... | B39: 61.9 | C39: 51.6 | D39: 77.3 | E39: 83.6 | F39: 105.9 | G39: 79.0 | H39: 79.1 | I39: 86.1 | J39: 99.0 | K39: 117.2
A40: Other grants....................................................................................... | B40: 157.1 | C40: 73.4 | D40: 84.5 | E40: 120.9 | F40: 141.9 | G40: 85.4 | H40: 124.9 | I40: 125.9 | J40: 161.9 | K40: 103.6
A41: Total....................................................................................... | B41: 305.7 | C41: 255.9 | D41: 415.9 | E41: 545.7 | F41: 680.1 | G41: 638.8 | H41: 784.8 | I41: 891.4 | J41: 882.8 | K41: 850.4
A43: D. Total grants as a percent of:
A44: Federal outlays:
A45: Total....................................................................................... | B45: 15.5% | C45: 10.8% | D45: 16.0% | E45: 17.3% | F45: 17.6% | G45: 16.9% | H45: 12.7% | I45: 17.7% | J45: 16.0% | K45: 15.1%
A46: Domestic programs 2....................................................................................... | B46: 22.2% | C46: 17.1% | D46: 22.0% | E46: 23.5% | F46: 23.4% | G46: 21.2% | H46: 15.0% | I46: 23.0% | J46: 21.2% | K46: 20.1%
A47: State and local expenditures....................................................................................... | B47: 26.4% | C47: 18.0% | D47: 21.0% | E47: 22.9% | F47: 25.6% | G47: 23.9% | H47: 26.1% | I47: 28.3% | J47: N/A | K47: N/A
A48: Gross domestic product....................................................................................... | B48: 3.3% | C48: 2.3% | D48: 2.8% | E48: 3.3% | F48: 4.1% | G48: 3.5% | H48: 3.9% | I48: 4.0% | J48: 3.9% | K48: 3.7%
A50: E. As a share of total State and local gross investments:
A51: Federal capital grants....................................................................................... | B51: 34.5% | C51: 21.0% | D51: 21.3% | E51: 21.2% | F51: 26.8% | G51: 21.7% | H51: 19.0% | I51: 21.3% | J51: N/A | K51: N/A
A52: State and local own-source financing....................................................................................... | B52: 65.5% | C52: 79.0% | D52: 78.7% | E52: 78.8% | F52: 73.2% | G52: 78.3% | H52: 81.0% | I52: 78.7% | J52: N/A | K52: N/A
A53: Total....................................................................................... | B53: 100.0% | C53: 100.0% | D53: 100.0% | E53: 100.0% | F53: 100.0% | G53: 100.0% | H53: 100.0% | I53: 100.0%
A54: N/A: Not available at publishing.
A55: 1 Grants that are both payments for individuals and capital investment are shown under capital investment.
A56: 2 Excludes national defense, international affairs, net interest, and undistributed offsetting receipts.

Sheet Table 8-2
A1: Table 8-2. FEDERAL GRANTS TO STATE AND LOCAL GOVERNMENTS—BUDGET AUTHORITY AND OUTLAYS
A2: (in millions of dollars)
A3: Function, Category, Agency and Program | B3: Budget Authority | E3: Outlays
B4: 2023 Actual | C4: 2024 Estimate | D4: 2025 Estimate | E4: 2023 Actual | F4: 2024 Estimate | G4: 2025 Estimate
A5: National Defense
A6: Discretionary:
A7: Department of Homeland Security:
A8: Federal Emergency Management Agency:
A9: Federal Assistance | B9: 56 | C9: 56 | D9: 0 | E9: 0 | F9: 16 | G9: 21
A10: Energy
A11: Discretionary:
A12: Department of Energy:
A13: Energy Programs:
A14: Office of State and Community Energy Programs | B14: 0 | C14: 0 | D14: 336 | E14: 0 | F14: 0 | G14: 134
A15: Mandatory:
A16: Tennessee Valley Authority:
A17: Tennessee Valley Authority Fund | B17: 593 | C17: 577 | D17: 628 | E17: 593 | F17: 577 | G17: 628
A18: Total, Energy | B18: 593 | C18: 577 | D18: 964 | E18: 593 | F18: 577 | G18: 762
A19: Natural Resources and Environment
A20: Discretionary:
A21: Department of Agriculture:
A22: Farm Service Agency:
A23: Grassroots Source Water Protection Program | B23: 8 | C23: 8 | D23: 8 | E23: 8 | F23: 8 | G23: 8
A24: Natural Resources Conservation Service:
A25: Emergency Watershed Protection | B25: 0 | C25: 0 | D25: 0 | E25: 4 | F25: 28 | G25: 9
A26: Watershed Rehabilitation Program | B26: 0 | C26: 0 | D26: 0 | E26: 11 | F26: 8 | G26: 0
A27: Watershed and Flood Prevention Operations | B27: 595 | C27: 52 | D27: 54 | E27: 143 | F27: 12 | G27: 13
A28: Forest Service:
A29: State, Private and Tribal Forestry | B29: 718 | C29: 572 | D29: 320 | E29: 281 | F29: 800 | G29: 659
A30: Management of National Forest Lands for Subsistence Uses | B30: 1 | C30: 1 | D30: 1 | E30: 1 | F30: 1 | G30: 1
A31: Department of Commerce:
A32: National Oceanic and Atmospheric Administration:
A33: Operations, Research, and Facilities | B33: 205 | C33: 114 | D33: 113 | E33: 201 | F33: 112 | G33: 111
A34: Pacific Coastal Salmon Recovery | B34: 99 | C34: 99 | D34: 99 | E34: 69 | F34: 111 | G34: 118
A35: Department of the Interior:
A36: Office of Surface Mining Reclamation and Enforcement:
A37: Regulation and Technology | B37: 65 | C37: 65 | D37: 65 | E37: 60 | F37: 71 | G37: 73
A38: Abandoned Mine Reclamation Fund | B38: 135 | C38: 135 | D38: 135 | E38: 109 | F38: 275 | G38: 469
A39: United States Geological Survey:
A40: Surveys, Investigations, and Research | B40: 11 | C40: 11 | D40: 0 | E40: 10 | F40: 9 | G40: 0
A41: United States Fish and Wildlife Service:
A42: Cooperative Endangered Species Conservation Fund | B42: 25 | C42: 25 | D42: 14 | E42: 48 | F42: 48 | G42: 46
A43: State Wildlife Grants | B43: 74 | C43: 74 | D43: 74 | E43: 71 | F43: 71 | G43: 70
A44: National Park Service:
A45: National Recreation and Preservation | B45: 93 | C45: 93 | D45: 84 | E45: 83 | F45: 84 | G45: 98
A46: Land Acquisition and State Assistance | B46: 0 | C46: 0 | D46: 0 | E46: 59 | F46: 70 | G46: 94
A47: Historic Preservation Fund | B47: 205 | C47: 205 | D47: 151 | E47: 129 | F47: 199 | G47: 196
A48: Department-Wide Programs:
A49: Energy Community Revitalization Program | B49: 2 | C49: 2 | D49: 4 | E49: 180 | F49: 452 | G49: 529
A50: Environmental Protection Agency:
A51: State and Tribal Assistance Grants | B51: 16,918 | C51: 15,662 | D51: 16,098 | E51: 5,740 | F51: 5,141 | G51: 9,313
A52: Hazardous Substance Superfund | B52: 250 | C52: 250 | D52: 250 | E52: 263 | F52: 313 | G52: 248
A53: Leaking Underground Storage Tank Trust Fund | B53: 86 | C53: 85 | D53: 100 | E53: 81 | F53: 81 | G53: 86
A54: Total, discretionary | B54: 19,490 | C54: 17,453 | D54: 17,570 | E54: 7,551 | F54: 7,894 | G54: 12,141
A55: Mandatory:
A56: Department of Commerce:
A57: National Oceanic and Atmospheric Administration:
A58: Gulf Coast Ecosystem Restoration Science, Observation, Monitoring, an.. | B58: 7 | C58: 7 | D58: 15 | E58: 6 | F58: 9 | G58: 9
A59: Department of the Interior:
A60: Bureau of Land Management:
A61: Miscellaneous Permanent Payment Accounts | B61: 38 | C61: 43 | D61: 64 | E61: 36 | F61: 25 | G61: 49
A62: Office of Surface Mining Reclamation and Enforcement:
A63: Abandoned Mine Reclamation Fund | B63: 97 | C63: 95 | D63: 102 | E63: 95 | F63: 102 | G63: 100
A64: United States Fish and Wildlife Service:
A65: Federal Aid in Wildlife Restoration | B65: 1,263 | C65: 1,089 | D65: 1,111 | E65: 893 | F65: 1,146 | G65: 1,198
A66: Cooperative Endangered Species Conservation Fund | B66: 133 | C66: 126 | D66: 136 | E66: 108 | F66: 110 | G66: 133
A67: Coastal Impact Assistance | B67: 0 | C67: 0 | D67: 0 | E67: 0 | F67: 1 | G67: 0
A68: Sport Fish Restoration | B68: 517 | C68: 470 | D68: 538 | E68: 464 | F68: 528 | G68: 535
A69: National Park Service:
A70: Land Acquisition and State Assistance | B70: 473 | C70: 441 | D70: 429 | E70: 45 | F70: 81 | G70: 193
A71: Departmental Offices:
A72: National Forests Fund, Payment to States | B72: 7 | C72: 8 | D72: 8 | E72: 7 | F72: 8 | G72: 8
A73: Leases of Lands Acquired for Flood Control, Navigation, and Allied Purp.. | B73: 55 | C73: 35 | D73: 35 | E73: 55 | F73: 35 | G73: 35
A74: States Share from Certain Gulf of Mexico Leases | B74: 354 | C74: 354 | D74: 354 | E74: 353 | F74: 354 | G74: 354
A75: Corps of Engineers--Civil Works:
A76: South Dakota Terrestrial Wildlife Habitat Restoration Trust Fund | B76: 3 | C76: 2 | D76: 2 | E76: 3 | F76: 2 | G76: 2
A77: Environmental Protection Agency:
A78: State and Tribal Assistance Grants | B78: 0 | C78: 0 | D78: 0 | E78: 1,329 | F78: 28,282 | G78: 3,259
A79: Environmental Programs and Management | B79: 0 | C79: 0 | D79: 0 | E79: 0 | F79: 11 | G79: 9
A80: Total, mandatory | B80: 2,947 | C80: 2,670 | D80: 2,794 | E80: 3,394 | F80: 30,694 | G80: 5,884
A81: Total, Natural Resources and Environment | B81: 22,437 | C81: 20,123 | D81: 20,364 | E81: 10,945 | F81: 38,588 | G81: 18,025
A82: Agriculture
A83: Discretionary:
A84: Department of Agriculture:
A85: National Institute of Food and Agriculture:
A86: Extension Activities | B86: 471 | C86: 471 | D86: 0 | E86: 408 | F86: 434 | G86: 471
A87: National Institute of Food and Agriculture | B87: 0 | C87: 0 | D87: 894 | E87: 0 | F87: 0 | G87: 156
A88: Research and Education Activities | B88: 396 | C88: 396 | D88: 0 | E88: 370 | F88: 370 | G88: 374
A89: Farm Service Agency:
A90: State Mediation Grants | B90: 7 | C90: 7 | D90: 7 | E90: 6 | F90: 7 | G90: 7
A91: Total, discretionary | B91: 874 | C91: 874 | D91: 901 | E91: 784 | F91: 811 | G91: 1,008
A92: Mandatory:
A93: Department of Agriculture:
A94: Agricultural Marketing Service:
A95: Payments to States and Possessions | B95: 80 | C95: 80 | D95: 80 | E95: 104 | F95: 111 | G95: 137
A96: Total, Agriculture | B96: 954 | C96: 954 | D96: 981 | E96: 888 | F96: 922 | G96: 1,145
A97: Commerce and Housing Credit
A98: Discretionary:
A99: Department of Commerce:
A100: National Oceanic and Atmospheric Administration:
A101: Fisheries Disaster Assistance | B101: 300 | C101: 0 | D101: 0 | E101: 187 | F101: 434 | G101: 0
A102: National Telecommunications and Information Administration:
A103: Broadband Connectivity Fund | B103: 0 | C103: 0 | D103: 0 | E103: 31 | F103: 252 | G103: 532
A104: Broadband Equity, Access, and Deployment Program | B104: 0 | C104: 0 | D104: 0 | E104: 55 | F104: 1,627 | G104: 9,194
A105: Digital Equity | B105: 539 | C105: 539 | D105: 539 | E105: 4 | F105: 41 | G105: 338
A106: Middle Mile Deployment | B106: 0 | C106: 0 | D106: 0 | E106: 6 | F106: 390 | G106: 392
A107: Total, discretionary | B107: 839 | C107: 539 | D107: 539 | E107: 283 | F107: 2,744 | G107: 10,456
A108: Mandatory:
A109: Department of Commerce:
A110: National Telecommunications and Information Administration:
A111: Broadband Connectivity Fund | B111: 0 | C111: 0 | D111: 0 | E111: 134 | F111: 126 | G111: 476
A112: Department of the Treasury:
A113: Departmental Offices:
A114: State Small Business Credit Initiative | B114: -150 | C114: 0 | D114: 0 | E114: 1,251 | F114: 2,504 | G114: 462
A115: Federal Communications Commission:
A116: Universal Service Fund | B116: 2,492 | C116: 2,461 | D116: 2,386 | E116: 2,471 | F116: 2,592 | G116: 2,770
A117: Total, mandatory | B117: 2,342 | C117: 2,461 | D117: 2,386 | E117: 3,856 | F117: 5,222 | G117: 3,708
A118: Total, Commerce and Housing Credit | B118: 3,181 | C118: 3,000 | D118: 2,925 | E118: 4,139 | F118: 7,966 | G118: 14,164
A119: Transportation
A120: Discretionary:
A121: Department of Transportation:
A122: Office of the Secretary:
A123: National Infrastructure Investments | B123: 3,234 | C123: 3,250 | D123: 3,250 | E123: 815 | F123: 1,283 | G123: 1,870
A124: National Culvert Removal, Replacement, and Restoration Grant Program | B124: 196 | C124: 196 | D124: 196 | E124: 0 | F124: 30 | G124: 29
A125: Strengthening Mobility and Revolutionizing Transportation Grant Program | B125: 98 | C125: 98 | D125: 98 | E125: 0 | F125: 23 | G125: 42
A126: Safe Streets and Roads for All | B126: 980 | C126: 980 | D126: 980 | E126: 0 | F126: 147 | G126: 402
A127: Federal Aviation Administration:
A128: Airport Terminal Program | B128: 999 | C128: 999 | D128: 999 | E128: 207 | F128: 868 | G128: 929
A129: Airport Infrastructure Grants | B129: 2,999 | C129: 2,999 | D129: 2,999 | E129: 267 | F129: 1,729 | G129: 3,079
A130: Grants-in-aid for Airports (Airport and Airway Trust Fund) | B130: 0 | C130: 0 | D130: 0 | E130: 4,319 | F130: 4,244 | G130: 2,943
A131: Grants-in-aid for Airports (Airport and Airway Trust Fund) (non-add obliga.. | B131: 3,350 | C131: 3,350 | D131: 3,350 | E131: 0 | F131: 0 | G131: 0
A132: Federal Highway Administration:
A133: Emergency Relief Program | B133: 803 | C133: 0 | D133: 0 | E133: 740 | F133: 1,019 | G133: 829
A134: Highway Infrastructure Programs | B134: 12,767 | C134: 12,804 | D134: 9,421 | E134: 5,142 | F134: 10,640 | G134: 13,061
A135: Appalachian Development Highway System | B135: 0 | C135: 0 | D135: 0 | E135: 0 | F135: 3 | G135: 4
A136: Federal-aid Highways | B136: 0 | C136: 0 | D136: 0 | E136: 47,039 | F136: 49,742 | G136: 52,192
A137: Federal-aid Highways (non-add obligation limitations) /1 | B137: 59,858 | C137: 57,286 | D137: 60,726 | E137: 0 | F137: 0 | G137: 0
A138: Miscellaneous Appropriations | B138: 0 | C138: 0 | D138: 0 | E138: 8 | F138: 12 | G138: 12
A139: Miscellaneous Highway Trust Funds | B139: 0 | C139: 0 | D139: 0 | E139: 7 | F139: 5 | G139: 5
A140: Federal Motor Carrier Safety Administration:
A141: Motor Carrier Safety Grants, General Fund | B141: 125 | C141: 125 | D141: 125 | E141: 38 | F141: 100 | G141: 113
A142: Motor Carrier Safety Grants | B142: 0 | C142: 0 | D142: 0 | E142: 463 | F142: 551 | G142: 548
A143: Motor Carrier Safety Grants (non-add obligation limitations) /1 | B143: 506 | C143: 506 | D143: 526 | E143: 0 | F143: 0 | G143: 0
A144: National Highway Traffic Safety Administration:
A145: Crash Data | B145: 0 | C145: 120 | D145: 0 | E145: 0 | F145: 159 | G145: 93
A146: Supplemental Highway Traffic Safety Programs | B146: 42 | C146: 42 | D146: 42 | E146: 19 | F146: 40 | G146: 45
A147: Highway Traffic Safety Grants | B147: 0 | C147: 0 | D147: 0 | E147: 728 | F147: 883 | G147: 894
A148: Highway Traffic Safety Grants (non-add obligation limitations) /1 | B148: 923 | C148: 934 | D148: 831 | E148: 0 | F148: 0 | G148: 0
A149: Federal Railroad Administration:
A150: Northeast Corridor Improvement Program | B150: 0 | C150: 0 | D150: 0 | E150: 0 | F150: 4 | G150: 3
A151: Rail Safety Technology Program | B151: 0 | C151: 0 | D151: 0 | E151: 0 | F151: 1 | G151: 0
A152: Railroad Safety Grants | B152: -2 | C152: 0 | D152: 0 | E152: 1 | F152: 5 | G152: 4
A153: Grants to the National Railroad Passenger Corporation | B153: 0 | C153: 0 | D153: 0 | E153: 0 | F153: 7 | G153: 7
A154: Intercity Passenger Rail Grant Program | B154: 0 | C154: 0 | D154: 0 | E154: 2 | F154: 5 | G154: 0
A155: Rail Line Relocation and Improvement Program | B155: -2 | C155: 0 | D155: 0 | E155: 0 | F155: 1 | G155: 0
A156: Capital Assistance for High Speed Rail Corridors and Intercity Passenger.. | B156: 0 | C156: 0 | D156: 0 | E156: 18 | F156: 30 | G156: 30
A157: Next Generation High-speed Rail | B157: 0 | C157: 0 | D157: 0 | E157: 0 | F157: 1 | G157: 0
A158: Railroad Crossing Elimination Program | B158: 600 | C158: 600 | D158: 600 | E158: 0 | F158: 0 | G158: 77
A159: Northeast Corridor Grants to the National Railroad Passenger Corporation | B159: 2,458 | C159: 2,453 | D159: 2,393 | E159: 1,455 | F159: 1,645 | G159: 2,159
A160: National Network Grants to the National Railroad Passenger Corporation | B160: 4,392 | C160: 4,387 | D160: 4,497 | E160: 1,735 | F160: 1,657 | G160: 2,985
A161: Federal-State Partnership for Intercity Passenger Rail Grants | B161: 7,298 | C161: 7,298 | D161: 7,298 | E161: 37 | F161: 307 | G161: 2,169
A162: Consolidated Rail Infrastructure and Safety Improvements | B162: 1,549 | C162: 1,549 | D162: 1,245 | E162: 130 | F162: 268 | G162: 399
A163: Federal Transit Administration:
A164: Washington Metropolitan Area Transit Authority | B164: 150 | C164: 150 | D164: 150 | E164: 151 | F164: 161 | G164: 166
A165: Formula Grants | B165: 0 | C165: 0 | D165: 0 | E165: 0 | F165: 3 | G165: 4
A166: Capital Investment Grants | B166: 4,235 | C166: 4,235 | D166: 3,966 | E166: 2,337 | F166: 2,703 | G166: 3,030
A167: Public Transportation Emergency Relief Program | B167: 214 | C167: 0 | D167: 0 | E167: 716 | F167: 752 | G167: 842
A168: Transit Infrastructure Grants | B168: 2,585 | C168: 2,585 | D168: 2,050 | E168: 2,443 | F168: 2,913 | G168: 2,779
A169: Transit Formula Grants | B169: 0 | C169: 0 | D169: 0 | E169: 9,966 | F169: 11,299 | G169: 12,082
A170: Transit Formula Grants (non-add obligation limitations) /1 | B170: 15,012 | C170: 14,934 | D170: 15,579 | E170: 0 | F170: 0 | G170: 0
A171: Pipeline and Hazardous Materials Safety Administration:
A172: Natural Gas Distribution Infrastructure Safety and Modernization Grant P.. | B172: 196 | C172: 196 | D172: 196 | E172: 0 | F172: 30 | G172: 28
A173: Pipeline Safety | B173: 55 | C173: 59 | D173: 78 | E173: 64 | F173: 59 | G173: 78
A174: Trust Fund Share of Pipeline Safety | B174: 13 | C174: 11 | D174: 11 | E174: 14 | F174: 11 | G174: 11
A175: Maritime Administration:
A176: Port Infrastructure Development Program | B176: 662 | C176: 662 | D176: 530 | E176: 71 | F176: 176 | G176: 268
A177: Total, discretionary | B177: 46,646 | C177: 45,798 | D177: 41,124 | E177: 78,932 | F177: 93,516 | G177: 104,211
A178: Total, obligation limitations (non-add) /1 | B178: 79,649 | C178: 77,010 | D178: 81,012 | E178: 0 | F178: 0 | G178: 0
A179: Mandatory:
A180: Department of Homeland Security:
A181: United States Coast Guard:
A182: Boat Safety | B182: 125 | C182: 112 | D182: 131 | E182: 119 | F182: 144 | G182: 122
A183: Department of Transportation:
A184: Federal Aviation Administration:
A185: Grants-in-aid for Airports (Airport and Airway Trust Fund) | B185: 3,149 | C185: 3,135 | D185: 3,128 | E185: 0 | F185: 0 | G185: 0
A186: Federal Highway Administration:
A187: Neighborhood Access and Environmental Programs | B187: 0 | C187: 0 | D187: 0 | E187: 1 | F187: 175 | G187: 950
A188: Federal-aid Highways | B188: 57,477 | C188: 58,820 | D188: 60,172 | E188: 649 | F188: 844 | G188: 845
A189: Federal Motor Carrier Safety Administration:
A190: Motor Carrier Safety Grants | B190: 506 | C190: 516 | D190: 526 | E190: 0 | F190: 0 | G190: 0
A191: National Highway Traffic Safety Administration:
A192: Highway Traffic Safety Grants | B192: 846 | C192: 871 | D192: 746 | E192: 0 | F192: 0 | G192: 0
A193: Federal Transit Administration:
A194: Transit Infrastructure Grants | B194: 0 | C194: 0 | D194: 0 | E194: 7,980 | F194: 2,643 | G194: 1,850
A195: Transit Formula Grants | B195: 14,974 | C195: 15,252 | D195: 15,540 | E195: 0 | F195: 0 | G195: 0
A196: Department of the Treasury:
A197: Departmental Offices:
A198: Transportation Services Economic Relief | B198: 0 | C198: 0 | D198: 0 | E198: -30 | F198: 0 | G198: 0
A199: Total, mandatory | B199: 77,077 | C199: 78,706 | D199: 80,243 | E199: 8,719 | F199: 3,806 | G199: 3,767
A200: Total, Transportation | B200: 123,723 | C200: 124,504 | D200: 121,367 | E200: 87,651 | F200: 97,322 | G200: 107,978
... 374 more rows
